bitfinex-derivatives/quotes_SOLF0:USTF0_20260105
["timestamp","ask_amount","ask_price","bid_price","bid_amount"]
[1767621445060,5.71826289,133.99,133.88,0.59351691]
[1767621445361,108.75219871,134.0,133.88,0.59351691]
[1767621445560,6.7217,133.97,133.88,7.31921691]
[1767621447971,104.551,133.98,133.88,0.59351691]
[1767621448158,5.71984548,133.97,133.88,0.59351691]
[1767621448362,104.551,133.98,133.88,0.59351691]
[1767621448563,5.72094771,133.97,133.88,0.59351691]
[1767621448767,104.551,133.98,133.88,0.59351691]
[1767621448968,5.72094771,133.97,133.88,0.59351691]
[1767621449268,6.7232,133.94,133.86,7.32011691]
[1767621450468,1.71494089,133.93,133.86,7.32011691]
[1767621451168,1.71494089,133.93,133.87,0.61661637]
[1767621451369,1.71494089,133.9,133.83,0.61661637]
[1767621451764,1.71494089,133.9,133.8,1.71494089]
[1767621451765,1.71494089,133.88,133.81,6.7296]
[1767621452075,1.71494089,133.88,133.81,0.61661637]
[1767621453074,8.44064089,133.89,133.81,7.34621637]
[1767621454072,6.7257,133.89,133.81,7.34621637]
[1767621454376,8.44064089,133.89,133.81,7.34621637]
[1767621459980,1.71494089,133.89,133.82,0.61661637]
[1767621460185,1.71494089,133.89,133.82,7.34541637]
[1767621460378,1.71494089,133.89,133.82,0.61661637]
[1767621461271,1.71494089,133.87,133.8,0.61661637]
[1767621461477,1.71494089,133.85,133.78,0.61661637]
[1767621461677,1.71494089,133.83,133.78,0.61661637]
[1767621461979,1.71494089,133.81,133.76,0.61661637]
[1767621462579,1.71494089,133.83,133.76,0.61661637]
[1767621462979,6.7266,133.87,133.79,7.34711637]
[1767621463283,6.7266,133.87,133.79,6.7305]
[1767621463486,1.71494089,133.88,133.8,2.33155726]
[1767621463681,1.71494089,133.9,133.81,0.61661637]
[1767621463878,1.71494089,133.88,133.81,0.61661637]
[1767621464074,1.71494089,133.88,133.79,88.87661637]
[1767621464289,1.71494089,133.88,133.79,90.59155726]
[1767621464587,6.7254,133.9,133.82,0.61661637]
[1767621464885,1.71494089,133.9,133.8,0.61661637]
[1767621465089,8.44114089,133.88,133.8,9.06165726]
[1767621466289,88.2,133.91,133.81,7.34611637]
[1767621466478,5.7586554,133.9,133.83,2.33155726]
[1767621466787,1.71494089,133.92,133.83,0.61661637]
[1767621466989,5.75932561,133.91,133.79,88.26]
[1767621467178,1.71494089,133.88,133.81,0.61661637]
[1767621467378,1.71494089,133.9,133.81,0.61661637]
[1767621468588,8.44004089,133.9,133.81,7.34601637]
[1767621472090,6.7251,133.9,133.81,7.34601637]
[1767621472292,8.44004089,133.9,133.81,7.34601637]
[1767621472484,6.7251,133.9,133.82,0.59082677]
[1767621472886,8.44004089,133.9,133.82,0.59082677]
[1767621475695,8.44004089,133.9,133.82,7.31982677]
[1767621476790,8.44004089,133.9,133.83,0.59082677]
[1767621477490,8.43944089,133.92,133.83,2.30576766]
[1767621477689,6.7245,133.92,133.83,2.30576766]
[1767621477997,8.43944089,133.92,133.84,0.59082677]
[1767621478491,8.43844089,133.94,133.86,0.59082677]
[1767621478694,5.74898992,133.93,133.86,0.59082677]
[1767621478885,8.43844089,133.94,133.86,0.59082677]
[1767621479083,5.74866756,133.93,133.86,0.59082677]
[1767621479288,8.43844089,133.94,133.86,0.59082677]
[1767621479598,1.71494089,133.92,133.84,0.59082677]
[1767621480202,8.43904089,133.92,133.84,0.59082677]
[1767621481792,6.7241,133.92,133.84,0.59082677]
[1767621482095,8.43904089,133.92,133.84,0.59082677]
[1767621482594,1.71494089,133.9,133.83,6.7282]
[1767621483099,1.71494089,133.9,133.82,97.32633296]
[1767621483397,104.5867,133.94,133.82,95.61139207]
[1767621483599,1.71494089,133.9,133.82,95.61139207]
[1767621484000,8.44004089,133.9,133.82,88.88249207]
[1767621484500,6.7251,133.9,133.82,88.88249207]
[1767621484701,8.44004089,133.9,133.82,88.88249207]
[1767621490905,6.726,133.89,133.82,88.88249207]
[1767621492302,104.5867,133.94,133.86,6.7269]
[1767621492303,6.7232,133.94,133.86,6.7269]
[1767621492505,5.76607073,133.93,133.85,0.62249207]
[1767621492702,5.76607073,133.92,133.85,0.62249207]
[1767621493010,5.76607073,133.91,133.82,0.62249207]
[1767621493195,5.76759118,133.9,133.82,0.62249207]
[1767621493398,2.68018014,133.93,133.82,0.62249207]
[1767621493598,12.03371955,133.92,133.82,0.62249207]
[1767621493800,5.76752266,133.91,133.82,0.62249207]
[1767621493997,5.76752266,133.9,133.82,0.62249207]
[1767621494199,5.76943112,133.89,133.82,0.62249207]
[1767621494399,2.68018014,133.93,133.82,0.62249207]
[1767621494603,6.7251,133.9,133.83,0.62249207]
[1767621494804,5.76956459,133.89,133.83,0.62249207]
[1767621495000,6.7251,133.9,133.83,0.62249207]
[1767621495201,5.76956459,133.89,133.83,0.62249207]
[1767621495406,6.7251,133.9,133.83,0.62249207]
[1767621495602,5.77174815,133.89,133.83,0.62249207]
[1767621495800,6.7258,133.89,133.83,0.62249207]
[1767621496307,5.77422173,133.88,133.83,0.62249207]
[1767621496608,6.7258,133.89,133.83,0.62249207]
[1767621496909,5.77437406,133.88,133.83,0.62249207]
[1767621497100,6.7258,133.89,133.83,0.62249207]
[1767621497300,5.77433927,133.88,133.83,0.62249207]
[1767621497500,6.7258,133.89,133.83,0.62249207]
[1767621497706,5.77430085,133.88,133.83,0.62249207]
[1767621498006,6.7258,133.89,133.83,0.62249207]
[1767621498205,5.77430415,133.88,133.83,0.62249207]
[1767621498408,6.7261,133.88,133.81,88.90249207]
[1767621499512,6.7261,133.88,133.82,0.62249207]
[1767621500213,6.7256,133.89,133.82,0.62249207]
[1767621500511,5.77395405,133.88,133.82,0.62249207]
[1767621500706,6.7256,133.89,133.82,0.62249207]
[1767621500911,6.7253,133.9,133.83,0.62249207]
[1767621501413,6.7246,133.92,133.83,0.62249207]
[1767621501614,5.77457963,133.91,133.83,0.62249207]
[1767621501808,5.77457963,133.9,133.83,0.62249207]
[1767621502010,2.68018014,133.93,133.83,0.62249207]
[1767621502208,6.7246,133.91,133.84,0.62249207]
[1767621502407,5.77452675,133.9,133.84,0.62249207]
[1767621506914,12.49972675,133.9,133.84,0.62249207]
[1767621507119,104.5847,133.94,133.84,0.62249207]
[1767621507314,12.0348772,133.93,133.84,0.62249207]
[1767621507516,12.0348772,133.92,133.84,0.62249207]
[1767621507716,12.0348772,133.91,133.84,0.62249207]
[1767621507929,5.77960687,133.9,133.84,0.62249207]
[1767621508217,6.7246,133.91,133.84,0.62249207]
[1767621508414,5.78131759,133.9,133.84,0.62249207]
[1767621508617,6.7246,133.91,133.84,0.62249207]
[1767621508812,5.7813175,133.9,133.84,0.62249207]
[1767621509013,6.7246,133.91,133.84,0.62249207]
[1767621509210,5.78131856,133.9,133.84,0.62249207]
[1767621509412,6.7246,133.91,133.84,0.62249207]
[1767621509709,5.78202248,133.9,133.84,0.62249207]
[1767621509905,5.78170954,133.89,133.81,7.35189207]
[1767621510115,5.78132568,133.88,133.82,0.62249207]
[1767621510321,104.5987,133.92,133.82,0.62249207]
[1767621510520,12.04496091,133.91,133.82,0.62249207]
[1767621510817,6.7261,133.89,133.82,0.62249207]
[1767621511012,5.78164701,133.88,133.8,9.41028014]
[1767621511218,5.78164701,133.87,133.8,10.0097513]
[1767621511414,6.7252,133.9,133.82,0.59947116]
[1767621511616,5.78255746,133.89,133.82,0.59947116]
[1767621511812,6.7252,133.9,133.82,0.59947116]
[1767621512017,5.78302497,133.89,133.82,0.59947116]
[1767621512322,6.7252,133.9,133.82,0.59947116]
[1767621512511,5.78312716,133.89,133.82,0.59947116]
[1767621512718,6.7252,133.9,133.83,0.59947116]
[1767621512921,5.78325511,133.89,133.83,0.59947116]
[1767621513121,6.7252,133.9,133.83,0.59947116]
[1767621513422,5.78315581,133.89,133.83,0.59947116]
[1767621513608,6.7252,133.9,133.83,0.59947116]
[1767621513812,5.78325172,133.89,133.83,0.59947116]
[1767621514122,6.7252,133.9,133.83,0.59947116]
[1767621514318,5.78326454,133.89,133.83,0.59947116]
[1767621514517,6.7252,133.9,133.83,0.59947116]
[1767621514814,5.78326004,133.89,133.83,0.59947116]
[1767621515021,6.7252,133.9,133.83,0.59947116]
[1767621515222,5.78326004,133.89,133.83,0.59947116]
[1767621515426,6.7252,133.9,133.83,0.59947116]
[1767621515624,5.783652,133.89,133.83,0.59947116]
[1767621515814,6.7252,133.9,133.83,0.59947116]
[1767621516125,5.78364295,133.89,133.83,0.59947116]
[1767621516419,6.7252,133.9,133.83,0.59947116]
[1767621516622,5.78364089,133.89,133.83,0.59947116]
[1767621516818,6.7252,133.9,133.83,0.59947116]
[1767621517023,5.78364089,133.89,133.83,0.59947116]
[1767621517218,6.7252,133.9,133.83,0.59947116]
[1767621517521,5.78364415,133.89,133.83,0.59947116]
[1767621517721,6.7252,133.9,133.83,0.59947116]
[1767621518025,5.78400829,133.89,133.83,0.59947116]
[1767621518324,6.7252,133.9,133.83,0.59947116]
[1767621518518,5.78401245,133.89,133.83,0.59947116]
[1767621518718,6.7252,133.9,133.83,0.59947116]
[1767621518920,5.78401245,133.89,133.83,0.59947116]
[1767621519222,6.7252,133.9,133.83,0.59947116]
[1767621519425,5.78390617,133.89,133.83,0.59947116]
[1767621519718,5.78384658,133.88,133.83,0.59947116]
[1767621520024,6.7252,133.9,133.83,0.59947116]
[1767621520322,12.50950617,133.89,133.82,94.989]
[1767621520518,5.78390617,133.88,133.81,0.59947116]
[1767621520723,6.7256,133.89,133.81,88.85947116]
[1767621521024,5.78382671,133.88,133.81,0.59947116]
[1767621521215,5.78382671,133.87,133.81,0.59947116]
[1767621521414,6.7256,133.89,133.81,0.59947116]
[1767621521615,5.78319077,133.88,133.81,7.32907116]
[1767621521823,5.78319077,133.87,133.81,7.32907116]
[1767621522023,6.7256,133.89,133.81,7.32907116]
[1767621522219,5.78306927,133.88,133.81,7.32907116]
[1767621522419,5.78306927,133.87,133.81,7.32907116]
[1767621522622,6.7256,133.89,133.81,7.32907116]
[1767621522822,5.78262377,133.88,133.81,7.32907116]
[1767621523022,5.78262377,133.87,133.81,7.32907116]
[1767621523225,6.7256,133.89,133.81,7.32907116]
[1767621523525,12.50859318,133.88,133.81,0.59947116]
[1767621523726,5.78229318,133.87,133.81,0.59947116]
[1767621523915,6.7263,133.88,133.81,0.59947116]
[1767621524117,5.78235387,133.87,133.81,0.59947116]
[1767621524314,6.7263,133.88,133.81,0.59947116]
[1767621524523,5.78266046,133.87,133.81,0.59947116]
[1767621524721,6.7263,133.88,133.81,0.59947116]
[1767621524921,5.78266046,133.87,133.81,0.59947116]
[1767621525121,6.7263,133.88,133.81,0.59947116]
[1767621525322,5.78266046,133.87,133.81,0.59947116]
[1767621525523,6.7263,133.88,133.81,0.59947116]
[1767621525723,5.78244211,133.87,133.81,0.59947116]
[1767621525918,6.7263,133.88,133.81,0.59947116]
[1767621526128,5.78244211,133.87,133.81,0.59947116]
[1767621526318,6.7263,133.88,133.81,0.59947116]
[1767621526522,5.78254057,133.87,133.81,0.59947116]
[1767621526722,6.7263,133.88,133.81,0.59947116]
[1767621526922,5.78254057,133.87,133.81,0.59947116]
[1767621527123,6.7263,133.88,133.81,0.59947116]
[1767621527322,5.78254057,133.87,133.81,0.59947116]
[1767621527626,6.7263,133.88,133.81,0.59947116]
[1767621527828,5.78269861,133.87,133.81,0.59947116]
[1767621528028,6.7263,133.88,133.81,0.59947116]
[1767621528232,5.78269861,133.87,133.81,0.59947116]
[1767621528422,6.7263,133.88,133.81,0.59947116]
[1767621528728,5.78252102,133.87,133.81,0.59947116]
[1767621528919,6.7263,133.88,133.81,0.59947116]
[1767621529122,12.51026019,133.87,133.81,0.59947116]
[1767621529331,6.7266,133.87,133.81,0.59947116]
[1767621532430,104.6447,133.86,133.76,0.59349257]
[1767621532631,5.78310735,133.85,133.76,0.59349257]
[1767621532830,5.78310735,133.84,133.76,0.59349257]
[1767621533039,5.78310735,133.83,133.76,0.59349257]
[1767621533222,2.68018014,133.87,133.76,0.59349257]
[1767621533529,6.7281,133.84,133.76,7.32559257]
[1767621536438,6.7281,133.84,133.77,0.59349257]
[1767621537642,104.6292,133.88,133.77,0.59349257]
[1767621537948,12.01276028,133.87,133.77,0.59349257]
[1767621538234,5.75307998,133.86,133.77,0.59349257]
[1767621538431,5.75307998,133.85,133.77,0.59349257]
[1767621538628,6.7277,133.85,133.77,7.32509257]
[1767621539030,107.31928014,133.87,133.77,0.59349257]
[1767621539230,5.75163435,133.86,133.77,0.59349257]
[1767621539430,5.75163435,133.85,133.77,0.59349257]
[1767621539735,107.31928014,133.87,133.77,0.59349257]
[1767621539934,5.75022818,133.86,133.77,0.59349257]
[1767621540127,5.75022818,133.85,133.77,0.59349257]
[1767621540329,6.7286,133.83,133.76,6.7321]
[1767621540528,6.7286,133.83,133.75,0.59349257]
[1767621540939,6.7286,133.83,133.75,7.32589257]
[1767621543339,0.41481632,133.82,133.75,6.21620357]
[1767621545449,0.41481632,133.82,133.77,0.63908334]
[1767621549240,7.14391632,133.82,133.77,0.63908334]
[1767621554735,0.41481632,133.82,133.77,0.63908334]
[1767621555441,7.15975626,133.85,133.79,0.63908334]
[1767621556040,7.15975626,133.85,133.75,0.63908334]
[1767621556041,0.43349363,133.82,133.75,0.63908334]
[1767621556843,0.43482041,133.81,133.75,0.63908334]
[1767621557352,0.43482041,133.84,133.78,0.63908334]
[1767621561254,0.43482041,133.84,133.78,7.37018334]
[1767621561454,0.43482041,133.84,133.79,1.71718335]
[1767621563050,0.43482041,133.84,133.78,7.37018334]
[1767621563443,0.43482041,133.84,133.79,1.71718335]
[1767621563655,0.43482041,133.84,133.78,7.37018334]
[1767621564151,0.43482041,133.84,133.78,9.08736669]
[1767621568051,0.43482041,133.84,133.79,0.63908334]
[1767621568962,0.43482041,133.84,133.79,7.36928334]
[1767621570061,0.43482041,133.84,133.79,0.63908334]
[1767621571855,0.4538536,133.82,133.75,0.65059163]
[1767621573356,0.4538536,133.82,133.76,0.65059163]
[1767621574256,0.4538536,133.82,133.76,7.38259163]
[1767621575259,0.4538536,133.82,133.77,0.65059163]
[1767621575465,0.45813887,133.84,133.77,7.38219163]
[1767621575654,0.45813887,133.84,133.77,0.65059163]
[1767621576163,0.45813887,133.85,133.77,0.65059163]
[1767621576559,0.45813887,133.85,133.78,6.7311]
[1767621576751,0.45813887,133.85,133.79,0.65059163]
[1767621576955,88.24,133.87,133.79,0.65059163]
[1767621576956,88.69917556,133.87,133.79,0.65059163]
[1767621577156,6.22321113,133.86,133.79,2.36777498]
[1767621577355,0.45917556,133.86,133.79,2.36777498]
[1767621577554,0.45917556,133.86,133.79,9.09837498]
[1767621578866,0.45917556,133.86,133.8,0.65059163]
[1767621581770,0.46419559,133.85,133.8,0.65059163]
[1767621584584,6.7272,133.86,133.8,0.65059163]
[1767621584886,7.19427761,133.86,133.8,0.65059163]
[1767621592588,5.74327649,133.85,133.8,0.65059163]
[1767621592797,7.19427761,133.86,133.8,0.65059163]
[1767621593190,0.46707761,133.86,133.8,0.65059163]
[1767621594592,7.19417761,133.86,133.8,0.65059163]
[1767621595095,7.2061484,133.83,133.77,0.64787297]
[1767621600500,7.2061484,133.83,133.75,7.38027297]
[1767621600501,0.48146697,133.82,133.75,7.38027297]
[1767621600794,7.21066697,133.82,133.75,0.64787297]
[1767621600996,0.48289182,133.81,133.75,0.64787297]
[1767621602395,0.48289182,133.81,133.74,6.7331]
[1767621602396,0.48441283,133.8,133.67,13.4731]
[1767621602699,0.48441283,133.8,133.73,0.63993774]
[1767621603395,1.71718335,133.82,133.71,0.63993774]
[1767621603396,0.48441283,133.77,133.71,0.63993774]
[1767621603600,0.48441283,133.77,133.7,6.7348]
[1767621603894,2.20234584,133.76,133.69,0.63993774]
[1767621604398,2.20234584,133.76,133.69,7.37553774]
[1767621604596,0.48591053,133.75,133.69,7.37553774]
[1767621605297,0.48591053,133.75,133.69,0.63993774]
[1767621605488,0.48664236,133.79,133.72,0.63993774]
[1767621606595,0.48664236,133.79,133.72,7.37403774]
[1767621607192,0.48664236,133.79,133.73,0.63993774]
[1767621607391,0.48664236,133.79,133.71,2.35712109]
[1767621607788,0.48664236,133.79,133.71,0.63993774]
[1767621608101,2.20526383,133.78,133.71,0.63993774]
[1767621608302,0.48808048,133.77,133.71,0.63993774]
[1767621612202,0.49085959,133.76,133.69,0.63993774]
[1767621612604,0.49154138,133.75,133.69,0.63993774]
[1767621613201,1.71718335,133.74,133.67,0.63993774]
[1767621613410,2.20872473,133.74,133.67,0.63993774]
[1767621614005,0.49154138,133.74,133.67,0.63993774]
[1767621614205,2.20872473,133.74,133.67,0.63993774]
[1767621614405,2.20872473,133.74,133.67,7.37653774]
[1767621614606,0.49154138,133.74,133.67,7.37653774]
[1767621615403,0.49154138,133.74,133.67,0.63993774]
[1767621615909,0.49154138,133.74,133.67,7.37633774]
[1767621617410,0.49154138,133.74,133.68,0.63993774]
[1767621617705,0.49154138,133.74,133.68,7.37603774]
[1767621618108,0.49154138,133.74,133.68,0.63993774]
[1767621620413,0.49154138,133.74,133.68,7.37603774]
[1767621620715,88.28,133.78,133.69,0.63993774]
[1767621620716,7.22799477,133.78,133.69,0.63993774]
[1767621621715,7.22799477,133.78,133.7,7.37503774]
[1767621622013,0.4972992,133.76,133.67,0.63993774]
[1767621622207,0.4972992,133.75,133.67,0.63993774]
[1767621622809,0.49791038,133.74,133.67,0.63993774]
[1767621624816,7.2329007,133.73,133.67,0.63993774]
[1767621627017,7.2329007,133.73,133.65,7.37723774]
[1767621627315,7.23327042,133.75,133.67,0.63993774]
[1767621627515,0.50084168,133.74,133.67,0.63993774]
[1767621627716,0.50084168,133.77,133.69,0.63993774]
[1767621629316,0.50084168,133.77,133.7,7.37503774]
[1767621631120,0.50084168,133.77,133.7,0.63993774]
[1767621632014,0.50485525,133.76,133.7,0.63993774]
[1767621634224,7.23688795,133.79,133.71,0.62074498]
[1767621634421,0.50588795,133.79,133.71,0.62074498]
[1767621634923,0.50588795,133.79,133.73,6.7336]
[1767621636124,0.50588795,133.79,133.72,0.62074498]
[1767621637516,0.50588795,133.79,133.72,7.35484498]
[1767621638119,0.50588795,133.79,133.73,7.35414498]
[1767621638324,0.50788074,133.81,133.74,0.62074498]
[1767621638822,0.50788074,133.81,133.75,7.35334498]
[1767621639021,0.50788074,133.81,133.75,0.62074498]
[1767621639418,0.50788074,133.81,133.73,0.62074498]
[1767621639923,138.89774319,133.83,133.76,0.62074498]
[1767621640920,138.89774319,133.83,133.76,7.35284498]
[1767621641317,138.89774319,133.83,133.77,0.62074498]
[1767621641718,145.62634319,133.83,133.75,0.62074498]
[1767621643527,145.62634319,133.83,133.75,7.35334498]
[1767621644327,138.89774319,133.83,133.77,0.62074498]
[1767621645724,138.38978939,133.83,133.77,0.62074498]
[1767621646633,138.38978939,133.83,133.77,7.35184498]
[1767621646820,138.38978939,133.83,133.77,0.62074498]
[1767621647022,0.5051963,133.84,133.77,0.62074498]
[1767621647219,0.5051963,133.84,133.79,6.7306]
[1767621647421,122.3154954,133.85,133.79,6.7306]
[1767621647619,34.0354954,133.85,133.79,7.35134498]
[1767621648239,0.50482286,133.86,133.8,0.62074498]
[1767621648922,0.50482286,133.86,133.77,0.62074498]
[1767621649523,0.50482286,133.86,133.79,6.7305]
[1767621649929,0.50482286,133.86,133.79,7.35124498]
[1767621650122,0.50482286,133.86,133.8,6.73]
[1767621650524,0.50371007,133.89,133.82,6.729]
[1767621652123,0.50371007,133.89,133.83,6.7285]
[1767621652333,88.26,133.91,133.83,0.61784964]
[1767621652733,0.50164087,133.92,133.83,0.61784964]
[1767621653033,0.50164087,133.92,133.85,6.7276]
[1767621653231,88.24,133.94,133.84,0.61784964]
[1767621653429,88.74129846,133.94,133.84,0.61784964]
[1767621653623,95.46439846,133.94,133.86,6.7271]
[1767621653833,0.50096009,133.93,133.86,7.34494964]
[1767621654132,0.50096009,133.93,133.83,0.61784964]
[1767621654335,0.50096009,133.91,133.83,0.61784964]
[1767621655138,0.50096009,133.91,133.83,7.34644964]
[1767621655526,0.50096009,133.91,133.83,0.61784964]
[1767621655729,0.50029655,133.9,133.83,0.61784964]
[1767621656933,0.50029655,133.9,133.78,104.7021]
[1767621656934,0.49996644,133.89,133.81,0.61784964]
[1767621657539,0.49996644,133.89,133.82,0.61784964]
[1767621660245,0.49900958,133.88,133.82,0.61784964]
[1767621660439,0.49900958,133.88,133.8,7.34744964]
[1767621661439,0.49804763,133.9,133.82,0.67628837]
[1767621662044,7.22314763,133.9,133.83,0.67628837]
[1767621662545,0.49804763,133.9,133.84,0.67628837]
[1767621666841,0.49658262,133.86,133.79,0.67628837]
[1767621668340,7.22378262,133.86,133.79,0.67628837]
[1767621673354,7.22378262,133.86,133.81,0.04964317]
[1767621674442,0.49658262,133.86,133.81,0.04964317]
[1767621674850,7.22102291,133.88,133.81,0.04964317]
[1767621675050,7.22102291,133.88,133.81,0.72593154]
[1767621675756,0.49416308,133.9,133.82,0.67628837]
[1767621676153,2.68718262,133.92,133.82,0.67628837]
[1767621676154,0.49416308,133.92,133.82,0.67628837]
[1767621676349,0.49416308,133.92,133.85,6.7276]
[1767621676553,1.71486828,133.94,133.86,0.67628837]
[1767621676753,2.20877188,133.97,133.89,0.67628837]
[1767621676959,0.4939036,133.97,133.89,0.67628837]
[1767621677155,2.20877188,133.97,133.89,0.67628837]
[1767621677356,0.4939036,133.97,133.89,0.67628837]
[1767621677560,2.20877188,133.97,133.89,0.67628837]
[1767621678061,0.49365307,133.96,133.92,0.04882587]
[1767621678265,8.43666828,133.97,133.87,95.0062]
[1767621678266,0.4448272,133.94,133.87,7.40248837]
[1767621678458,0.50145067,133.94,133.87,7.40248837]
[1767621680268,0.05662347,133.94,133.88,0.67628837]
[1767621682770,0.50075833,133.94,133.87,1.71486828]
[1767621683861,0.50075833,133.94,133.87,2.39115665]
[1767621684266,0.50075833,133.94,133.88,0.67628837]
[1767621685267,0.05662347,133.94,133.89,0.67628837]
[1767621686373,0.05662347,133.94,133.87,1.71486828]
[1767621686575,0.50022373,133.94,133.86,95.66298837]
[1767621686768,0.50022373,133.94,133.87,0.67628837]
[1767621686973,0.05662347,133.94,133.88,0.67628837]
[1767621688274,2.15833982,133.93,133.86,0.67628837]
[1767621688582,0.44347154,133.92,133.86,0.67628837]
[1767621689170,0.049109,133.9,133.86,0.67628837]
[1767621693578,0.049109,133.9,133.86,7.40328837]
[1767621693780,0.049109,133.9,133.87,0.67121082]
[1767621694977,7.16518457,133.95,133.87,7.39771082]
[1767621695176,0.44228457,133.95,133.88,0.67121082]
[1767621696180,0.44228457,133.95,133.89,0.67121082]
[1767621696977,0.44228457,133.95,133.89,7.39671082]
[1767621700175,2.39542337,133.97,133.9,0.67121082]
[1767621701276,9.11702337,133.97,133.9,0.67121082]
[1767621703074,0.49094206,133.96,133.9,0.67121082]
[1767621703482,0.49094206,133.96,133.89,94.9655]
[1767621703682,0.49094206,133.96,133.89,95.63671082]
[1767621704380,0.49094206,133.96,133.89,7.39671082]
[1767621706081,0.49094206,133.96,133.9,0.67121082]
[1767621708283,6.7216,133.97,133.9,0.67121082]
[1767621708486,0.4909403,133.98,133.9,0.67121082]
[1767621709171,0.4909403,133.98,133.91,0.67121082]
[1767621709684,0.4909403,133.98,133.92,0.67121082]
[1767621710183,0.49093803,133.97,133.91,0.67121082]
[1767621710677,31.64647523,133.99,133.91,0.67121082]
[1767621711278,31.64647523,133.99,133.92,0.67121082]
[1767621713471,31.64647523,133.99,133.93,0.63447971]
[1767621713876,31.15553866,133.99,133.93,0.63447971]
[1767621715181,9.11536317,134.01,133.93,0.63447971]
[1767621715376,5.72310153,134.0,133.93,0.63447971]
[1767621715577,9.11536317,134.01,133.93,0.63447971]
[1767621715785,5.72310153,134.0,133.94,0.63447971]
[1767621715979,9.11536317,134.01,133.94,0.63447971]
[1767621716181,5.72310153,134.0,133.94,0.63447971]
[1767621716483,2.39546317,134.01,133.94,0.63447971]
[1767621716784,5.72530102,134.0,133.94,0.63447971]
[1767621716971,2.39546317,134.01,133.94,0.63447971]
[1767621717174,5.72529778,134.0,133.94,0.63447971]
[1767621717378,2.39546317,134.01,133.94,0.63447971]
[1767621717583,0.49097552,133.99,133.92,0.63447971]
[1767621717886,0.49097552,133.98,133.92,0.63447971]
[1767621720188,0.49097231,134.0,133.93,0.63447971]
[1767621720375,5.74026121,133.99,133.93,2.53896617]
[1767621720582,0.49097231,134.0,133.93,2.53896617]
[1767621720881,1.90448646,134.02,133.94,0.66659164]
[1767621721087,5.74165037,134.01,133.94,0.66659164]
[1767621721292,0.49083011,134.02,133.94,0.66659164]
[1767621721480,5.74322972,134.01,133.96,0.66659164]
[1767621721790,0.49083011,134.02,133.96,0.66659164]
[1767621721991,5.74396658,134.01,133.96,0.66659164]
[1767621722180,0.49083011,134.02,133.96,0.66659164]
[1767621722381,5.74226335,134.01,133.96,7.38859164]
[1767621722581,0.49082418,134.04,133.97,0.66659164]
[1767621722786,5.74240876,134.03,133.97,0.66659164]
[1767621722986,0.49082418,134.04,133.97,0.66659164]
[1767621723181,0.49081959,134.02,133.94,88.88659164]
[1767621723386,0.49081959,134.02,133.94,0.66659164]
[1767621724182,7.21011959,134.02,133.94,7.38969164]
[1767621724785,7.21011959,134.02,133.87,125.5639]
[1767621724786,0.49081332,134.0,133.92,0.66659164]
[1767621725287,2.39529978,133.99,133.92,0.66659164]
[1767621725487,0.49081332,133.99,133.92,0.66659164]
[1767621726591,7.21151332,133.99,133.92,0.66659164]
[1767621728888,0.49080856,133.98,133.92,0.66659164]
[1767621731388,0.49080856,133.98,133.9,88.86659164]
[1767621731696,2.39528807,133.95,133.88,0.66659164]
[1767621731892,0.49080161,133.95,133.88,0.66659164]
[1767621732190,1.90448646,133.96,133.89,0.66659164]
[1767621732381,0.49080161,133.97,133.89,0.66659164]
[1767621732587,2.39528807,133.97,133.89,0.66659164]
[1767621732895,2.39528807,133.97,133.9,7.39159164]
[1767621735185,2.39528807,133.97,133.91,0.66659164]
[1767621735390,0.49080161,133.97,133.91,0.66659164]
[1767621736393,7.2113879,133.99,133.92,0.66659164]
[1767621736598,5.73998382,133.98,133.92,0.66659164]
[1767621736784,0.4907879,133.99,133.92,0.66659164]
[1767621736988,5.7400012,133.98,133.92,0.66659164]
[1767621737196,0.4907879,133.99,133.92,0.66659164]
[1767621737396,5.74118249,133.98,133.92,0.66659164]
[1767621737585,0.4907879,133.99,133.92,0.66659164]
[1767621737788,5.74116711,133.98,133.92,7.39049164]
[1767621737985,0.4907879,133.99,133.92,7.39049164]
[1767621738186,5.74116712,133.98,133.92,7.39049164]
[1767621738385,0.4907879,133.99,133.92,0.66659164]
[1767621738685,5.74339882,133.98,133.92,0.66659164]
[1767621738886,0.4907879,133.99,133.92,0.66659164]
[1767621739088,5.74341404,133.98,133.92,0.66659164]
[1767621739287,0.4907879,133.99,133.92,0.66659164]
[1767621739587,5.74435721,133.98,133.92,0.66659164]
[1767621739791,0.4907725,133.98,133.9,88.88659164]
[1767621740195,0.4907725,133.98,133.91,0.66659164]
[1767621742603,0.49076857,134.0,133.92,0.66659164]
[1767621742795,6.23897504,133.99,133.92,0.66659164]
[1767621743102,5.74820647,133.98,133.92,0.66659164]
[1767621744195,12.96007148,133.98,133.92,0.66659164]
[1767621744398,12.96007148,133.98,133.9,7.39169164]
[1767621744399,6.23968425,133.97,133.9,7.39169164]
[1767621744600,0.49076501,133.97,133.94,0.04987531]
[1767621746105,0.54476731,133.97,133.9,7.39169164]
[1767621746604,0.0540023,133.97,133.91,0.66659164]